[Event "Turkish Super League 2019"]
[Site "Konya"]
[Date "2019.07.28"]
[Round "13"]
[White "Visakh N R"]
[Black "Selbes, Tarik"]
[Result "1-0"]
[ECO "E81"]
[WhiteElo "2526"]
[BlackElo "2342"]
[Annotator "ChessBase"]
[PlyCount "73"]
[EventDate "2019.07.17"]
[EventType "team-tourn"]
[EventCountry "TUR"]
[SourceTitle "playchess.com"]
[Source "ChessBase"]
[SourceQuality "1"]
[TimeControl "40/5400+30:1800+30"]

1. d4 {[%emt 0:00:30]} Nf6 {[%emt 0:00:30]} 2. c4 {[%emt 0:00:00]} g6 {[%emt 0:00:30]} 3. Nc3 {[%emt 0:00:00]} Bg7 {[%emt 0:00:00]} 4. e4 {[%emt 0:00:30]} d6 {[%emt 0:00:00]} 5. f3 {[%emt 0:00:00]} O-O {[%emt 0:00:30]} 6. Be3 {[%emt 0:00:00]} c5 {[%emt 0:00:30]} 7. Nge2 {[%emt 0:00:30]} Qa5 {[%emt 0:00:30]} 8. Nc1 {[%emt 0:00:30]} cxd4 {[%emt 0:00:30]} 9. Nb3 {[%emt 0:00:00]} Qh5 {[%emt 0:00:30]} 10. Nxd4 {[%emt 0:00:00]} Nc6 {[%emt 0:00:00]} 11. Be2 {[%emt 0:00:30]} Nxd4 {[%emt 0:02:00]} 12. Bxd4 {[%emt 0:00:30]} Be6 {[%emt 0:00:00]} 13. Qd2 {[%emt 0:00:00]} Rfc8 {[%emt 0:02:00]} 14. b3 {[%emt 0:04:00]} Qa5 {[%emt 0:01:30]} 15. Rb1 {[%emt 0:08:30]} a6 {[%emt 0:03:30]} 16. O-O {[%emt 0:02:30]} b5 {[%emt 0:13:30]} 17. b4 {[%emt 0:01:30]} Qd8 {[%emt 0:00:30]} 18. cxb5 {[%emt 0:02:30]} axb5 {[%emt 0:00:30]} 19. Bxb5 {[%emt 0:00:30]} Ra3 {[%emt 0:12:30]} 20. Rfc1 {[%emt 0:00:30]} h5 {[%emt 0:30:30]} 21. Kh1 {[%emt 0:08:30]} Kh7 {[%emt 0:01:30]} 22. Qb2 {[%emt 0:05:30]} Rcxc3 {[%emt 0:04:30]} 23. Rxc3 {[%emt 0:00:30]} Rxa2 {[%emt 0:00:30]} 24. Qc1 {[%emt 0:00:00]} Nxe4 {[%emt 0:01:30]} 25. Bxg7 {[%emt 0:00:00]} Nf2+ {[%emt 0:01:30]} 26. Kg1 {[%emt 0:00:30]} Kxg7 {[%emt 0:00:30]} 27. Qe3 {[%emt 0:02:30]} d5 {[%emt 0:06:43]} 28. Qd4+ {[%emt 0:00:30]} f6 {[%emt 0:00:16]} 29. Bc4 {[%emt 0:00:30]} Ra8 {[%emt 0:10:57]} 30. Be2 {[%emt 0:00:00]} Bf5 {[%emt 0:01:02]} 31. Rbc1 {[%emt 0:00:00]} Nh3+ {[%emt 0:01:12]} 32. gxh3 {[%emt 0:00:30]} Ra2 {[%emt 0:00:50]} 33. Bc4 {[%emt 0:01:30]} Rb2 {[%emt 0:00:35]} 34. Rb3 {[%emt 0:01:30]} Ra2 {[%emt 0:00:34]} 35. Re3 {[%emt 0:00:30]} e5 {[%emt 0:01:18]} 36. Qxd5 {[%emt 0:00:30]} Qb6 {[%emt 0:00:21]} 37. Qc5 {[%emt 0:00:30]} 1-0

[Event "Turkish Super League 2019"]
[Site "Konya"]
[Date "2019.07.28"]
[Round "13"]
[White "Annaberdiev, Meilis"]
[Black "Romanov, Evgeny"]
[Result "1-0"]
[ECO "C50"]
[WhiteElo "2515"]
[BlackElo "2582"]
[Annotator "ChessBase"]
[PlyCount "85"]
[EventDate "2019.07.17"]
[EventType "team-tourn"]
[EventCountry "TUR"]
[SourceTitle "playchess.com"]
[Source "ChessBase"]
[SourceQuality "1"]
[TimeControl "40/5400+30:1800+30"]

1. e4 {[%emt 0:00:30]} e5 {[%emt 0:00:30]} 2. Nf3 {[%emt 0:00:30]} Nc6 {[%emt 0:00:00]} 3. Bc4 {[%emt 0:00:00]} Bc5 {[%emt 0:00:00]} 4. d3 {[%emt 0:00:00]} Nf6 {[%emt 0:01:30]} 5. Bg5 {[%emt 0:00:30]} h6 {[%emt 0:00:30]} 6. Bh4 {[%emt 0:00:30]} Be7 {[%emt 0:02:30]} 7. Bg3 {[%emt 0:00:30]} d6 {[%emt 0:00:30]} 8. a4 {[%emt 0:00:30]} Bg4 {[%emt 0:10:30]} 9. h3 {[%emt 0:01:30]} Bh5 {[%emt 0:00:00]} 10. c3 {[%emt 0:01:30]} Nh7 {[%emt 0:11:00]} 11. Nbd2 {[%emt 0:07:30]} Ng5 {[%emt 0:00:00]} 12. a5 {[%emt 0:01:30]} a6 {[%emt 0:02:00]} 13. Qb3 {[%emt 0:01:30]} Nxf3+ {[%emt 0:00:30]} 14. Nxf3 {[%emt 0:00:00]} Rb8 {[%emt 0:02:30]} 15. Nh2 {[%emt 0:14:00]} O-O {[%emt 0:05:30]} 16. Nf1 {[%emt 0:16:30]} Bg5 {[%emt 0:04:30]} 17. Bh2 {[%emt 0:06:30]} Ne7 {[%emt 0:03:30]} 18. h4 {[%emt 0:09:30]} Bxh4 {[%emt 0:07:30]} 19. Bxe5 {[%emt 0:03:30]} dxe5 {[%emt 0:01:30]} 20. Rxh4 {[%emt 0:00:30]} Bg6 {[%emt 0:00:30]} 21. g3 {[%emt 0:11:30]} Kh7 {[%emt 0:06:30]} 22. Ne3 {[%emt 0:02:30]} f5 {[%emt 0:02:30]} 23. O-O-O {[%emt 0:00:00]} f4 {[%emt 0:02:30]} 24. gxf4 {[%emt 0:07:11]} exf4 {[%emt 0:06:30]} 25. Ng4 {[%emt 0:02:00]} Nc6 {[%emt 0:00:00]} 26. Rdh1 {[%emt 0:00:06]} Qg5 {[%emt 0:04:00]} 27. f3 {[%emt 0:02:56]} Nxa5 {[%emt 0:00:30]} 28. Qa4 {[%emt 0:00:23]} Nc6 {[%emt 0:04:30]} 29. Bd5 {[%emt 0:01:21]} b5 {[%emt 0:01:30]} 30. Qc2 {[%emt 0:05:02]} Ne7 {[%emt 0:06:46]} 31. Ba2 {[%emt 0:00:30]} b4 {[%emt 0:02:07]} 32. cxb4 {[%emt 0:00:41]} Rb6 {[%emt 0:05:01]} 33. Qg2 {[%emt 0:02:19]} h5 {[%emt 0:04:09]} 34. d4 {[%emt 0:00:26]} Ng8 {[%emt 0:02:02]} 35. Qf2 {[%emt 0:02:07]} Nh6 {[%emt 0:02:02]} 36. Ne5 {[%emt 0:00:36]} Be8 {[%emt 0:00:30]} 37. Qc2 {[%emt 0:00:30]} Rxb4 {[%emt 0:00:49]} 38. Qc5 {[%emt 0:00:02]} Ra4 {[%emt 0:01:33]} 39. Qxf8 {[%emt 0:00:30]} Rxa2 {[%emt 0:00:30]} 40. Kb1 {[%emt 0:00:30]} Bf7 {[%emt 0:00:00]} 41. Nxf7 {[%emt 0:07:20]} Rxb2+ {[%emt 0:01:31]} 42. Kxb2 {[%emt 0:00:30]} Qb5+ {[%emt 0:00:30]} 43. Kc3 {[%emt 0:00:30]} 1-0

[Event "Turkish Super League 2019"]
[Site "Konya"]
[Date "2019.07.28"]
[Round "13"]
[White "Lobanov, Sergei"]
[Black "Cansun, Can Alp"]
[Result "1-0"]
[ECO "B43"]
[WhiteElo "2505"]
[BlackElo "2121"]
[Annotator "ChessBase"]
[PlyCount "72"]
[EventDate "2019.07.17"]
[EventType "team-tourn"]
[EventCountry "TUR"]
[SourceTitle "playchess.com"]
[Source "ChessBase"]
[SourceQuality "1"]
[TimeControl "40/5400+30:1800+30"]

1. e4 {[%emt 0:00:30]} c5 {[%emt 0:00:30]} 2. Nf3 {[%emt 0:00:00]} e6 {[%emt 0:00:00]} 3. d4 {[%emt 0:00:00]} cxd4 {[%emt 0:00:00]} 4. Nxd4 {[%emt 0:00:00]} a6 {[%emt 0:00:30]} 5. Nc3 {[%emt 0:00:00]} Qc7 {[%emt 0:00:00]} 6. Bd3 {[%emt 0:00:30]} Nf6 {[%emt 0:01:00]} 7. f4 {[%emt 0:00:30]} b5 {[%emt 0:02:30]} 8. e5 {[%emt 0:00:30]} b4 {[%emt 0:00:30]} 9. Na4 {[%emt 0:00:30]} Nd5 {[%emt 0:00:00]} 10. O-O {[%emt 0:01:30]} Bb7 {[%emt 0:00:00]} 11. Be4 {[%emt 0:04:30]} Nc6 {[%emt 0:11:30]} 12. Bxd5 {[%emt 0:01:30]} exd5 {[%emt 0:00:30]} 13. Be3 {[%emt 0:01:30]} Nxd4 {[%emt 0:03:30]} 14. Qxd4 {[%emt 0:01:30]} Rc8 {[%emt 0:01:30]} 15. b3 {[%emt 0:00:30]} Be7 {[%emt 0:04:30]} 16. Rac1 {[%emt 0:02:30]} d6 {[%emt 0:19:30]} 17. c3 {[%emt 0:08:30]} dxe5 {[%emt 0:05:30]} 18. fxe5 {[%emt 0:00:30]} bxc3 {[%emt 0:00:30]} 19. Rxc3 {[%emt 0:00:30]} Qb8 {[%emt 0:01:30]} 20. Rfc1 {[%emt 0:13:30]} O-O {[%emt 0:01:30]} 21. Nb6 {[%emt 0:00:00]} Rxc3 {[%emt 0:00:30]} 22. Qxc3 {[%emt 0:00:00]} d4 {[%emt 0:07:30]} 23. Bxd4 {[%emt 0:01:30]} Qd8 {[%emt 0:01:30]} 24. Re1 {[%emt 0:09:30]} Bh4 {[%emt 0:00:30]} 25. g3 {[%emt 0:00:30]} Qg5 {[%emt 0:05:30]} 26. Qe3 {[%emt 0:05:30]} Qg4 {[%emt 0:03:30]} 27. e6 {[%emt 0:04:30]} Bxg3 {[%emt 0:22:16]} 28. hxg3 {[%emt 0:00:30]} Qh5 {[%emt 0:00:30]} 29. exf7+ {[%emt 0:00:30]} Kh8 {[%emt 0:00:00]} 30. Qf4 {[%emt 0:05:30]} Bc6 {[%emt 0:00:00]} 31. Rf1 {[%emt 0:01:30]} h6 {[%emt 0:00:38]} 32. Bxg7+ {[%emt 0:00:30]} Kxg7 {[%emt 0:00:39]} 33. Qf6+ {[%emt 0:00:30]} Kh7 {[%emt 0:00:30]} 34. Qxc6 {[%emt 0:00:30]} Rxf7 {[%emt 0:00:00]} 35. Rxf7+ {[%emt 0:00:00]} Qxf7 {[%emt 0:00:03]} 36. Qd7 {[%emt 0:00:00]} Kg6 {[%emt 0:00:38]} 1-0

[Event "Turkish Super League 2019"]
[Site "Konya"]
[Date "2019.07.28"]
[Round "13"]
[White "Esen, Baris"]
[Black "Rasulov, Vugar"]
[Result "1-0"]
[ECO "B07"]
[WhiteElo "2478"]
[BlackElo "2534"]
[Annotator "ChessBase"]
[PlyCount "101"]
[EventDate "2019.07.17"]
[EventType "team-tourn"]
[EventCountry "TUR"]
[SourceTitle "playchess.com"]
[Source "ChessBase"]
[SourceQuality "1"]
[TimeControl "40/5400+30:1800+30"]

1. Nf3 {[%emt 0:01:30]} g6 {[%emt 0:00:30]} 2. e4 {[%emt 0:00:30]} Bg7 {[%emt 0:00:30]} 3. d4 {[%emt 0:00:30]} d6 {[%emt 0:00:30]} 4. c3 {[%emt 0:00:00]} Nd7 {[%emt 0:01:30]} 5. Bd3 {[%emt 0:00:00]} e5 {[%emt 0:00:30]} 6. O-O {[%emt 0:01:30]} Ngf6 {[%emt 0:00:30]} 7. Be3 {[%emt 0:00:30]} O-O {[%emt 0:00:30]} 8. Nbd2 {[%emt 0:00:00]} Ng4 {[%emt 0:01:30]} 9. Bg5 {[%emt 0:00:00]} f6 {[%emt 0:00:00]} 10. Bh4 {[%emt 0:00:30]} h5 {[%emt 0:00:00]} 11. Ne1 {[%emt 0:04:30]} Nh6 {[%emt 0:02:30]} 12. f3 {[%emt 0:00:30]} Nf7 {[%emt 0:00:30]} 13. Nc2 {[%emt 0:00:30]} Bh6 {[%emt 0:00:30]} 14. a4 {[%emt 0:01:30]} Kg7 {[%emt 0:00:30]} 15. a5 {[%emt 0:00:30]} a6 {[%emt 0:00:30]} 16. b4 {[%emt 0:00:30]} Bg5 {[%emt 0:00:30]} 17. Bf2 {[%emt 0:00:30]} h4 {[%emt 0:00:30]} 18. Ne3 {[%emt 0:07:30]} Rh8 {[%emt 0:03:30]} 19. Qc2 {[%emt 0:02:30]} Nf8 {[%emt 0:01:30]} 20. d5 {[%emt 0:06:30]} Nh6 {[%emt 0:05:30]} 21. Rfd1 {[%emt 0:02:30]} Qd7 {[%emt 0:13:30]} 22. c4 {[%emt 0:03:30]} f5 {[%emt 0:05:30]} 23. h3 {[%emt 0:03:30]} Bf4 {[%emt 0:04:30]} 24. c5 {[%emt 0:00:30]} Qd8 {[%emt 0:18:30]} 25. exf5 {[%emt 0:04:30]} Bxe3 {[%emt 0:00:30]} 26. Bxe3 {[%emt 0:00:30]} Nxf5 {[%emt 0:00:30]} 27. Bf2 {[%emt 0:00:30]} Nh7 {[%emt 0:01:30]} 28. Nc4 {[%emt 0:11:30]} Ng5 {[%emt 0:05:30]} 29. cxd6 {[%emt 0:02:30]} cxd6 {[%emt 0:04:30]} 30. Nb6 {[%emt 0:00:30]} Rb8 {[%emt 0:04:30]} 31. Rac1 {[%emt 0:01:30]} Kh6 {[%emt 0:09:17]} 32. Qd2 {[%emt 0:02:30]} Bd7 {[%emt 0:10:05]} 33. f4 {[%emt 0:05:30]} exf4 {[%emt 0:00:55]} 34. Qxf4 {[%emt 0:00:00]} Bb5 {[%emt 0:00:37]} 35. Bxf5 {[%emt 0:02:00]} gxf5 {[%emt 0:00:01]} 36. Bxh4 {[%emt 0:00:30]} Kg6 {[%emt 0:00:21]} 37. Rd4 {[%emt 0:13:30]} Qf6 {[%emt 0:00:00]} 38. Bxg5 {[%emt 0:00:30]} Qxg5 {[%emt 0:00:00]} 39. Qxd6+ {[%emt 0:00:30]} Qf6 {[%emt 0:00:00]} 40. Qg3+ {[%emt 0:00:30]} Kh6 {[%emt 0:00:00]} 41. Rf4 {[%emt 0:33:30]} Rbg8 {[%emt 0:00:00]} 42. Qf3 {[%emt 0:00:30]} Kg6 {[%emt 0:00:00]} 43. Rc2 {[%emt 0:00:30]} Qe5 {[%emt 0:00:00]} 44. Rf2 {[%emt 0:00:30]} Rh5 {[%emt 0:00:00]} 45. g4 {[%emt 0:00:30]} Rxh3 {[%emt 0:00:14]} 46. Qxh3 {[%emt 0:00:30]} Rh8 {[%emt 0:10:30]} 47. Qg2 {[%emt 0:01:02]} Qe1+ {[%emt 0:00:30]} 48. Rf1 {[%emt 0:00:29]} Qe3+ {[%emt 0:04:30]} 49. R4f2 {[%emt 0:03:36]} Rh3 {[%emt 0:00:30]} 50. gxf5+ {[%emt 0:00:30]} Kh7 {[%emt 0:00:30]} 51. Qxh3+ {[%emt 0:00:30]} 1-0

[Event "Turkish Super League 2019"]
[Site "Konya"]
[Date "2019.07.28"]
[Round "13"]
[White "Haznedaroglu, Kivanc"]
[Black "Soysal, Serkan"]
[Result "1-0"]
[ECO "C45"]
[WhiteElo "2448"]
[BlackElo "2431"]
[Annotator "NA"]
[PlyCount "55"]
[EventDate "2019.07.17"]
[EventType "team-tourn"]
[EventCountry "TUR"]
[SourceTitle "playchess.com"]
[Source "ChessBase"]
[SourceQuality "1"]
[TimeControl "40/5400+30:1800+30"]

1. e4 {[%emt 0:00:30]} e5 {[%emt 0:00:30]} 2. Nf3 {[%emt 0:00:30]} Nc6 {[%emt 0:00:30]} 3. d4 {[%emt 0:00:00]} exd4 {[%emt 0:00:30]} 4. Nxd4 {[%emt 0:00:00]} Bb4+ {[%emt 0:00:30]} 5. c3 {[%emt 0:00:00]} Be7 {[%emt 0:00:30]} 6. Bc4 {[%emt 0:01:00]} d6 {[%emt 0:04:30]} 7. O-O {[%emt 0:02:30]} Nf6 {[%emt 0:00:30]} 8. Re1 {[%emt 0:00:30]} O-O {[%emt 0:00:00]} 9. Bf4 {[%emt 0:00:30]} Ne5 {[%emt 0:03:00]} 10. Bb3 {[%emt 0:01:30]} c6 {[%emt 0:00:30]} 11. Bg3 {[%emt 0:04:30]} Ng6 {[%emt 0:09:30]} 12. Nd2 {[%emt 0:04:30]} Re8 {[%emt 0:04:30]} 13. h3 {[%emt 0:04:30]} Bf8 {[%emt 0:06:30]} 14. f4 {[%emt 0:02:30]} Nd7 {[%emt 0:01:30]} 15. Qh5 {[%emt 0:03:30]} Nf6 {[%emt 0:05:30]} 16. Qf3 {[%emt 0:00:30]} Nd7 {[%emt 0:03:30]} 17. Rad1 {[%emt 0:08:30]} a5 {[%emt 0:00:30]} 18. a3 {[%emt 0:10:30]} a4 {[%emt 0:00:30]} 19. Ba2 {[%emt 0:00:00]} Nc5 {[%emt 0:03:30]} 20. Nc4 {[%emt 0:04:00]} Qc7 {[%emt 0:04:30]} 21. e5 {[%emt 0:04:30]} d5 {[%emt 0:08:30]} 22. f5 {[%emt 0:04:30]} dxc4 {[%emt 0:12:30]} 23. e6 {[%emt 0:01:30]} Nh4 {[%emt 0:04:30]} 24. Qg4 {[%emt 0:01:30]} Bd6 {[%emt 0:04:30]} 25. Bxd6 {[%emt 0:02:30]} Qxd6 {[%emt 0:01:30]} 26. exf7+ {[%emt 0:00:30]} Kxf7 {[%emt 0:00:30]} 27. Bxc4+ {[%emt 0:00:00]} Kf8 {[%emt 0:00:30]} 28. Ne6+ {[%emt 0:00:00]} 1-0

[Event "Turkish Super League 2019"]
[Site "Konya"]
[Date "2019.07.28"]
[Round "13"]
[White "Daulyte-Cornette, Deimante"]
[Black "Caglar, Sila"]
[Result "1-0"]
[ECO "B40"]
[WhiteElo "2444"]
[BlackElo "2306"]
[Annotator "NA"]
[PlyCount "73"]
[EventDate "2019.07.17"]
[EventType "team-tourn"]
[EventCountry "TUR"]
[SourceTitle "playchess.com"]
[Source "ChessBase"]
[SourceQuality "1"]
[TimeControl "40/5400+30:1800+30"]

1. e4 {[%emt 0:00:30]} c5 {[%emt 0:00:30]} 2. Nf3 {[%emt 0:00:30]} e6 {[%emt 0:00:00]} 3. g3 {[%emt 0:00:00]} d5 {[%emt 0:05:00]} 4. exd5 {[%emt 0:00:00]} exd5 {[%emt 0:00:30]} 5. d4 {[%emt 0:00:00]} Nc6 {[%emt 0:06:30]} 6. Bg2 {[%emt 0:01:00]} Bg4 {[%emt 0:02:30]} 7. O-O {[%emt 0:00:30]} Nxd4 {[%emt 0:10:30]} 8. Qe1+ {[%emt 0:00:30]} Be7 {[%emt 0:02:30]} 9. Nxd4 {[%emt 0:01:30]} cxd4 {[%emt 0:01:30]} 10. Qe5 {[%emt 0:00:30]} Nf6 {[%emt 0:00:30]} 11. Qxd4 {[%emt 0:00:30]} O-O {[%emt 0:00:30]} 12. Nc3 {[%emt 0:01:30]} Bf5 {[%emt 0:01:30]} 13. Re1 {[%emt 0:35:30]} Bxc2 {[%emt 0:07:30]} 14. Bg5 {[%emt 0:00:30]} h6 {[%emt 0:02:30]} 15. Rxe7 {[%emt 0:07:30]} hxg5 {[%emt 0:02:30]} 16. Rxb7 {[%emt 0:01:30]} Be4 {[%emt 0:03:30]} 17. Rxa7 {[%emt 0:03:30]} Bxg2 {[%emt 0:06:30]} 18. Kxg2 {[%emt 0:02:30]} Rb8 {[%emt 0:00:30]} 19. b4 {[%emt 0:08:30]} Qd6 {[%emt 0:00:30]} 20. a3 {[%emt 0:01:30]} Rfc8 {[%emt 0:00:30]} 21. Rd1 {[%emt 0:01:30]} Qc6 {[%emt 0:01:30]} 22. Rd3 {[%emt 0:00:30]} Ra8 {[%emt 0:01:30]} 23. b5 {[%emt 0:02:30]} Qc4 {[%emt 0:05:30]} 24. Rxa8 {[%emt 0:02:30]} Rxa8 {[%emt 0:00:30]} 25. a4 {[%emt 0:00:30]} Rc8 {[%emt 0:00:30]} 26. Nxd5 {[%emt 0:04:30]} Nxd5 {[%emt 0:01:30]} 27. Qxc4 {[%emt 0:05:40]} Rxc4 {[%emt 0:00:30]} 28. Rxd5 {[%emt 0:00:12]} Rxa4 {[%emt 0:00:30]} 29. Rxg5 {[%emt 0:00:00]} Rb4 {[%emt 0:00:00]} 30. Kf3 {[%emt 0:01:13]} g6 {[%emt 0:00:00]} 31. Ke3 {[%emt 0:01:19]} Kg7 {[%emt 0:00:30]} 32. Re5 {[%emt 0:01:43]} Kf6 {[%emt 0:00:30]} 33. f4 {[%emt 0:00:32]} Rb2 {[%emt 0:01:30]} 34. Kd4 {[%emt 0:00:50]} Rxh2 {[%emt 0:00:30]} 35. b6 {[%emt 0:00:44]} Rg2 {[%emt 0:01:30]} 36. Rb5 {[%emt 0:01:22]} Rd2+ {[%emt 0:00:30]} 37. Ke4 {[%emt 0:00:11]} 1-0

[Event "Turkish Super League 2019"]
[Site "Konya"]
[Date "2019.07.28"]
[Round "13"]
[White "Mammadzada, Gunay"]
[Black "Yildiz Kadioglu, Betul Cemre"]
[Result "1/2-1/2"]
[ECO "C67"]
[WhiteElo "2427"]
[BlackElo "2290"]
[Annotator "NA"]
[PlyCount "89"]
[EventDate "2019.07.17"]
[EventType "team-tourn"]
[EventCountry "TUR"]
[SourceTitle "playchess.com"]
[Source "ChessBase"]
[SourceQuality "1"]
[TimeControl "40/5400+30:1800+30"]

1. e4 {[%emt 0:00:30]} e5 {[%emt 0:00:30]} 2. Nf3 {[%emt 0:00:00]} Nc6 {[%emt 0:00:30]} 3. Bb5 {[%emt 0:00:00]} Nf6 {[%emt 0:00:00]} 4. O-O {[%emt 0:01:30]} Nxe4 {[%emt 0:01:00]} 5. d4 {[%emt 0:01:30]} Nd6 {[%emt 0:00:30]} 6. dxe5 {[%emt 0:00:30]} Nxb5 {[%emt 0:00:30]} 7. a4 {[%emt 0:00:30]} Nbd4 {[%emt 0:00:30]} 8. Nxd4 {[%emt 0:00:30]} d5 {[%emt 0:00:00]} 9. Nxc6 {[%emt 0:05:30]} bxc6 {[%emt 0:00:00]} 10. Nd2 {[%emt 0:03:30]} Be7 {[%emt 0:00:30]} 11. Nb3 {[%emt 0:07:30]} c5 {[%emt 0:00:00]} 12. Na5 {[%emt 0:07:30]} Qd7 {[%emt 0:00:00]} 13. c4 {[%emt 0:02:30]} d4 {[%emt 0:02:30]} 14. f4 {[%emt 0:01:30]} Qg4 {[%emt 0:05:30]} 15. Qb3 {[%emt 0:19:30]} O-O {[%emt 0:11:30]} 16. Bd2 {[%emt 0:10:30]} Qg6 {[%emt 0:06:30]} 17. Qf3 {[%emt 0:03:30]} Bf5 {[%emt 0:13:30]} 18. Rae1 {[%emt 0:04:30]} Rfe8 {[%emt 0:06:30]} 19. Nc6 {[%emt 0:04:30]} Bf8 {[%emt 0:00:30]} 20. b3 {[%emt 0:03:30]} h5 {[%emt 0:11:30]} 21. h3 {[%emt 0:01:30]} h4 {[%emt 0:07:30]} 22. Kh2 {[%emt 0:00:30]} Bd7 {[%emt 0:01:30]} 23. Na5 {[%emt 0:00:30]} Bf5 {[%emt 0:03:30]} 24. Rg1 {[%emt 0:02:44]} Qg3+ {[%emt 0:06:30]} 25. Qxg3 {[%emt 0:00:30]} hxg3+ {[%emt 0:00:30]} 26. Kxg3 {[%emt 0:00:00]} Rab8 {[%emt 0:00:00]} 27. Rc1 {[%emt 0:01:19]} f6 {[%emt 0:02:54]} 28. Rge1 {[%emt 0:04:03]} fxe5 {[%emt 0:00:51]} 29. Rxe5 {[%emt 0:00:26]} Rxe5 {[%emt 0:01:57]} 30. fxe5 {[%emt 0:00:30]} Rb6 {[%emt 0:00:30]} 31. b4 {[%emt 0:00:30]} cxb4 {[%emt 0:00:30]} 32. c5 {[%emt 0:06:26]} Re6 {[%emt 0:04:17]} 33. Bxb4 {[%emt 0:05:16]} Rxe5 {[%emt 0:00:57]} 34. Nc6 {[%emt 0:01:55]} Rd5 {[%emt 0:05:53]} 35. Nxa7 {[%emt 0:01:08]} d3 {[%emt 0:02:49]} 36. Nb5 {[%emt 0:00:08]} d2 {[%emt 0:03:43]} 37. Rd1 {[%emt 0:00:04]} Bc2 {[%emt 0:02:31]} 38. Rxd2 {[%emt 0:00:00]} Rxd2 {[%emt 0:00:00]} 39. Bxd2 {[%emt 0:00:29]} Bxa4 {[%emt 0:00:21]} 40. Nxc7 {[%emt 0:00:30]} Bxc5 {[%emt 0:00:30]} 41. Ne6 {[%emt 0:30:30]} Be7 {[%emt 0:04:17]} 42. Bc3 {[%emt 0:00:00]} g6 {[%emt 0:00:30]} 43. Be5 {[%emt 0:00:00]} Kf7 {[%emt 0:01:30]} 44. Nd4 {[%emt 0:00:00]} Bc5 {[%emt 0:02:30]} 45. Nf3 {[%emt 0:00:00]} 1/2-1/2

[Event "Turkish Super League 2019"]
[Site "Konya"]
[Date "2019.07.28"]
[Round "13"]
[White "Ertan, Can"]
[Black "Heberla, Bartlomiej"]
[Result "0-1"]
[ECO "B93"]
[WhiteElo "2396"]
[BlackElo "2534"]
[Annotator "ChessBase"]
[PlyCount "54"]
[EventDate "2019.07.17"]
[EventType "team-tourn"]
[EventCountry "TUR"]
[SourceTitle "playchess.com"]
[Source "ChessBase"]
[SourceQuality "1"]
[TimeControl "40/5400+30:1800+30"]

1. e4 {[%emt 0:00:30]} c5 {[%emt 0:00:30]} 2. Nf3 {[%emt 0:00:00]} d6 {[%emt 0:00:00]} 3. d4 {[%emt 0:00:00]} cxd4 {[%emt 0:00:00]} 4. Nxd4 {[%emt 0:00:30]} Nf6 {[%emt 0:00:30]} 5. Nc3 {[%emt 0:00:30]} a6 {[%emt 0:00:00]} 6. Be2 {[%emt 0:00:30]} Nbd7 {[%emt 0:00:00]} 7. f4 {[%emt 0:04:30]} g6 {[%emt 0:04:30]} 8. O-O {[%emt 0:05:30]} Bg7 {[%emt 0:00:00]} 9. Be3 {[%emt 0:09:30]} O-O {[%emt 0:03:00]} 10. a4 {[%emt 0:08:30]} Re8 {[%emt 0:12:30]} 11. Bc4 {[%emt 0:15:30]} e6 {[%emt 0:38:30]} 12. Ba2 {[%emt 0:11:30]} b6 {[%emt 0:08:30]} 13. e5 {[%emt 0:09:30]} dxe5 {[%emt 0:01:30]} 14. fxe5 {[%emt 0:01:30]} Nxe5 {[%emt 0:00:30]} 15. Bg5 {[%emt 0:00:00]} Bb7 {[%emt 0:06:30]} 16. Nxe6 {[%emt 0:00:00]} fxe6 {[%emt 0:01:30]} 17. Qxd8 {[%emt 0:02:30]} Raxd8 {[%emt 0:00:30]} 18. Rxf6 {[%emt 0:00:00]} Bxf6 {[%emt 0:00:30]} 19. Bxf6 {[%emt 0:00:00]} Rd2 {[%emt 0:00:30]} 20. Re1 {[%emt 0:02:30]} Rxg2+ {[%emt 0:01:57]} 21. Kf1 {[%emt 0:00:00]} Ng4 {[%emt 0:00:15]} 22. Rxe6 {[%emt 0:10:00]} Rxe6 {[%emt 0:05:21]} 23. Bxe6+ {[%emt 0:00:30]} Kf8 {[%emt 0:00:00]} 24. Bxg4 {[%emt 0:00:10]} Rxg4 {[%emt 0:00:00]} 25. Be5 {[%emt 0:00:00]} Be4 {[%emt 0:02:25]} 26. Nxe4 {[%emt 0:02:34]} Rxe4 {[%emt 0:00:06]} 27. Bc7 {[%emt 0:00:00]} Rc4 {[%emt 0:00:24]} 0-1